Cogmind - Beta 13 @@@ ROGUE MODE // 2024.05.22 @ 22:00:08 Player: Johnny5001 Result: Destroyed by Y-64 Sentinel with Wave Gun Performance ------------- Evolutions (3) 1500 Regions Visited (12) 2400 Robots Destroyed (85) 425 Value Destroyed (2678) 2678 Prototype IDs (13) 260 Alien Tech Used (0) 0 Bonus (-441) -441 TOTAL SCORE: 6822 Bonus ------- Follower Combat Kills 60 Met Data Miner 300 Friendly Fire -801 Cogmind --------- Core Integrity 0/700 Matter 280/300 Energy 100/100 System Corruption 2% Temperature Cool (9) Movement Core (200) Ox3 Location -6/Proximity Caves Parts ------- > --- POWER (1) -------- (None) > --- PROPULSION (4) --- (None) > --- UTILITY (5) ------ Medium Storage Unit > --- WEAPON (3) ------- (None) > --- INVENTORY (10) --- Light Deuterium Engine Light Deuterium Engine Improved Cooling System Large Matter Pod (150) Hacking Suite Makeshift Hacking Suite Makeshift Hacking Suite Lightning Gun Proton Missile Launcher Peak State ------------ > --- POWER ------------ Light Angular Momentum Engine > --- PROPULSION ------- Carbon-fiber Leg Carbon-fiber Leg Carbon-fiber Leg Armored Wheel > --- UTILITY ---------- Improved Heat Sink Medium Storage Unit Visual Processing Unit Signal Interpreter Medium Reactive Plating > --- WEAPON ----------- Advanced Assault Cannon Proton Missile Launcher Makeshift Sword > --- INVENTORY -------- Light Deuterium Engine Light Deuterium Engine Improved Cooling System Large Matter Pod Advanced Targeting Computer Hacking Suite Makeshift Hacking Suite Makeshift Hacking Suite Lightning Gun Gauss Cannon [Rating: 42] Favorites ----------- Power Ion Engine Engine Ion Engine Power Core Light Nuclear Core Propulsion Improved Aluminum Leg Treads Light Treads Leg Improved Aluminum Leg Wheel Armored Wheel Utility Signal Interpreter Device Bomb Drone Bay Storage Medium Storage Unit Processor Signal Interpreter Protection Light Armor Plating Weapon EM Pulse Gun Energy Gun EM Pulse Gun Ballistic Gun Minigun Ballistic Cannon Advanced Assault Cannon Launcher YI-UF0's Doublenader Slashing Weapon Katana Build | -11 -10 -10 -9 -9 -9 -8 -8 -7 -7 -7 -7 -6 ------- Run | Yrd Mat Min Mat Min Exi Min Mat Fac Low Low Dat Pro Slots Evolved 6 | . . . 2 . . . 2 2 . . . . Power . | . . . . . . . . . . . . . Propulsion 2 | . . . . . . . 2 . . . . . Utility 3 | . . . 2 . . . . 1 . . . . Weapon 1 | . . . . . . . . 1 . . . . Parts Attached 102 | 7 6 3 24 3 . 8 21 8 16 . 2 4 Power 10 | . 1 1 3 . . 1 1 1 2 . . . Engine 9 | . 1 1 3 . . . 1 1 2 . . . Core 1 | . . . . . . 1 . . . . . . Reactor . | . . . . . . . . . . . . . Propulsion 32 | 3 1 . 8 . . 2 9 1 8 . . . Treads 9 | 2 1 . 6 . . . . . . . . . Leg 19 | . . . 2 . . 2 9 1 5 . . . Wheel 4 | 1 . . . . . . . . 3 . . . Hover . | . . . . . . . . . . . . . Flight . | . . . . . . . . . . . . . Utility 17 | 2 1 . 3 . . 2 4 1 3 . . 1 Device 6 | 1 . . 2 . . . . 1 2 . . . Storage 2 | 1 . . 1 . . . . . . . . . Processor 3 | . 1 . . . . 1 . . . . . 1 Hackware . | . . . . . . . . . . . . . Protection 6 | . . . . . . 1 4 . 1 . . . Artifact . | . . . . . . . . . . . . . Weapon 43 | 2 3 2 10 3 . 3 7 5 3 . 2 3 Energy Gun 9 | 1 1 . 5 . . . . . 1 . 1 . Energy Cannon . | . . . . . . . . . . . . . Ballistic Gun 13 | 1 1 1 3 1 . 2 3 1 . . . . Ballistic Cannon 5 | . . . . . . . . 2 1 . 1 1 Launcher 11 | . 1 1 2 2 . 1 1 1 1 . . 1 Special Weapon . | . . . . . . . . . . . . . Impact Weapon . | . . . . . . . . . . . . . Slashing Weapon 5 | . . . . . . . 3 1 . . . 1 Piercing Weapon . | . . . . . . . . . . . . . Special Melee Weapon . | . . . . . . . . . . . . . Unidentified Prototypes 2 | . . . 1 1 . . . . . . . . Corrupted Parts 1 | . . . . . . 1 . . . . . . System Corruption 3 | . . . . . . 3 . . . . . . Parts Lost 33 | . . . 3 . . 3 5 10 5 . . 7 Power 3 | . . . . . . . 1 1 1 . . . Propulsion 16 | . . . 1 . . 1 3 5 2 . . 4 Utility 6 | . . . . . . 1 1 2 1 . . 1 Weapon 8 | . . . 2 . . 1 . 2 1 . . 2 Highest Loss Streak 8 | . . . 2 . . 3 3 8 4 . . 6 To Critical Strikes . | . . . . . . . . . . . . . Average Slot Usage (%) 91 | . 96 100 87 88 88 88 97 96 63 100 86 95 Engine 7 | . 11 14 11 11 11 . 1 6 1 7 7 6 Core 2 | . . . . . . 10 6 . . . . . Treads 8 | . 27 28 19 . . . . . . . . . Leg 15 | . . . 2 22 22 22 35 27 6 23 23 21 Wheel 1 | . . . . . . . . . 10 7 7 6 Device 4 | . 3 . 11 11 11 . . 6 3 7 7 6 Storage 10 | . 14 14 11 11 11 11 9 7 7 7 7 7 Processor 13 | . 10 14 11 11 11 11 18 15 15 15 15 15 Protection 4 | . . . . . . 11 8 6 4 7 7 5 Energy Gun 6 | . 13 14 14 14 11 . . . . 7 1 . Ballistic Gun 7 | . 13 12 7 . . 11 12 9 . . . . Ballistic Cannon 1 | . . . . . . . . 4 . 7 . 7 Launcher 3 | . . 1 . 6 11 10 . . 5 . . 5 Slashing Weapon 2 | . . . . . . . 4 6 7 7 7 6 Naked Turns . | . . . . . . . . . . . . . Heaviest Build 55 | 10 15 15 28 31 31 27 27 40 52 52 52 55 Greatest Support 60 | 40 40 40 44 26 26 28 60 53 45 45 45 45 Greatest Overweight (x) 7 | . . . 7 1 1 1 . 1 6 1 1 3 Average Overweight (x) . | . . . . 1 1 . . . . 1 . 1 Largest Inventory Capacity 10 | 8 8 8 10 10 10 10 10 10 10 10 10 10 Average Capacity 9 | 6 8 8 8 10 10 10 10 10 10 10 10 10 Most Carried 10 | 7 8 8 10 10 10 10 10 10 10 10 10 10 Average Carried 8 | 4 7 7 7 9 10 9 9 9 8 9 10 9 Final Capacity 10 | 8 8 8 10 10 10 10 10 10 10 10 10 10 Final Carried 10 | 7 8 8 10 10 10 9 9 9 8 10 10 9 Class Distribution -------------------- 55% | Scavenger-Mutant 43% | Mutant Dominant Class ---------------- Mutant | -10/Materials Mutant | -10/Mines Scavenger-Mutant | -9/Materials Mutant | -9/Mines Mutant | -9/Exiles Scavenger-Mutant | -8/Mines Scavenger-Mutant | -8/Materials Scavenger-Mutant | -7/Factory Scavenger-Mutant | -7/Lower Caves Scavenger-Mutant | -7/Lower Caves Scavenger-Mutant | -7/Data Miner Scavenger-Mutant | -6/Proximity Caves Resources | -11 -10 -10 -9 -9 -9 -8 -8 -7 -7 -7 -7 -6 ----------- Run | Yrd Mat Min Mat Min Exi Min Mat Fac Low Low Dat Pro Matter Collected 2390 | 269 98 115 326 46 10 152 446 84 666 20 . 158 Remotely 13 | . . . . . . . . . 13 . . . Salvage Created 2624 | 16 234 63 400 112 . 298 684 185 329 . . 303 Parts 167 | 2 16 13 30 6 . 22 38 15 12 . . 13 Haulers Intercepted . | . . . . . . . . . . . . . Recyclers Shooed . | . . . . . . . . . . . . . Parts Field Recycled . | . . . . . . . . . . . . . Retrieved Matter . | . . . . . . . . . . . . . Parts Self-Destructed 27 | . . . . . . . . . 13 1 . 13 Prevented 6 | . . . . . . . . . . 2 . 4 Kills | -11 -10 -10 -9 -9 -9 -8 -8 -7 -7 -7 -7 -6 ------- Run | Yrd Mat Min Mat Min Exi Min Mat Fac Low Low Dat Pro Combat Hostiles Destroyed 75 | . 8 6 11 . . 13 15 9 7 . . 6 Melee 9 | . . . . . . . 6 2 1 . . . Guns 29 | . 6 3 11 . . 2 7 . . . . . Cannons 6 | . . . . . . . . . . . . 6 AOE 31 | . 2 3 . . . 11 2 7 6 . . . Classes Destroyed 13 | 1 3 . 2 . . 2 1 1 3 . . . Builder 1 | . . . . . . . . 1 . . . . Tunneler 2 | 1 . . . . . 1 . . . . . . Mechanic 1 | . . . 1 . . . . . . . . . Operator 3 | . . . . . . . 1 2 . . . . Watcher 2 | . 1 . . . . . 1 . . . . . Swarmer 29 | . 5 6 4 . . 6 3 4 . . . 1 Grunt 30 | . 3 . 3 . . 5 5 5 6 . . 3 Brawler 1 | . . . . . . 1 . . . . . . Duelist 3 | . . . . . . . . . 1 . . 2 Sentry 11 | . . . 4 . . . 7 . . . . . Hunter 1 | . . . . . . 1 . . . . . . Decomposer 2 | . . . . . . . . . 2 . . . Packrat 1 | . . . . . . . . . 1 . . . Best Kill Streak 8 | 1 3 3 5 . . 3 4 8 4 . . 6 Combat Bots Only 7 | . 3 3 5 . . 3 4 7 4 . . 6 Max Kills in Single Turn 3 | 1 2 1 1 1 . 3 2 3 2 . . 1 Gunslinging . | . . . . . . . . . . . . . Exploded 3 | . 2 1 . . . 3 2 3 2 . . . Melee 1 | . . . . . . . 1 1 1 . . . Uniques/NPCs Destroyed 1 | . . . . 1 . . . . . . . . YI-UF0 (-9/Mines) Combat | -11 -10 -10 -9 -9 -9 -8 -8 -7 -7 -7 -7 -6 -------- Run | Yrd Mat Min Mat Min Exi Min Mat Fac Low Low Dat Pro Hostile Shots Fired 429 | . 28 21 72 . . 30 87 113 18 . . 60 Missed 116 | . 7 3 16 . . 6 30 34 6 . . 14 Damage Taken 5291 | . 228 167 648 92 . 448 778 1352 395 . . 1183 Core 1006 | . 30 16 105 . . 54 97 201 54 . . 449 Absorbed by Shields . | . . . . . . . . . . . . . Ignored by Resistances 43 | . . . . . . . . 15 . . . 28 Regen/Repaired (Parts) 172 | . 105 . . . . . 67 . . . . . Core Remaining (%) 80 | 100 . 81 . . . 60 82 . . . . . Volleys Fired 152 | 1 21 9 39 4 . 17 22 16 10 . . 13 Largest 2 | 2 2 2 2 2 . 2 2 2 1 . . 2 Hottest 105 | 60 60 70 105 65 . 95 95 87 39 . . 96 Shots Fired 252 | 2 39 15 69 8 . 25 38 20 10 . . 26 Gun 179 | 2 38 11 66 8 . 15 35 4 . . . . Cannon 32 | . . . . . . . . 9 . . . 23 Launcher 41 | . 1 4 3 . . 10 3 7 10 . . 3 Special . | . . . . . . . . . . . . . Kinetic 137 | 1 18 5 27 4 . 11 35 13 . . . 23 Thermal 11 | . . . 11 . . . . . . . . . Explosive 38 | . 1 4 3 . . 10 3 7 10 . . . Electromagnetic 66 | 1 20 6 28 4 . 4 . . . . . 3 Robot Hit Streak 21 | 1 19 4 19 21 . 7 5 6 2 . . 4 Robot Miss Streak 4 | . 1 2 4 1 . 3 2 1 3 . . 3 Penetration Max . | . . . . . . . . . . . . . Secondary Targets 2 | . . 1 1 . . . . . . . . . Max Gunslinging Chain 1 | . . 1 1 . . . . . . . . . Shots Hit Robots 203 | 1 29 8 46 6 . 16 42 27 16 . . 12 Core Hits 142 | 1 14 6 21 4 . 22 25 19 17 . . 13 Critical Kills . | . . . . . . . . . . . . . Critical Parts Destroyed 2 | . 1 1 . . . . . . . . . . Critical Strikes 10 | . 1 1 2 . . . 2 2 . . . 2 Burn 1 | . . . 1 . . . . . . . . . Destroy 2 | . 1 1 . . . . . . . . . . Blast 2 | . . . . . . . . . . . . 2 Corrupt 1 | . . . 1 . . . . . . . . . Sever 4 | . . . . . . . 2 2 . . . . Melee Attacks 68 | . . . . . . . 22 32 14 . . . Impact . | . . . . . . . . . . . . . Slashing 68 | . . . . . . . 22 32 14 . . . Piercing . | . . . . . . . . . . . . . Sneak Attacks 7 | . . . . . . . 2 1 4 . . . Combat Hostiles . | . . . . . . . . . . . . . Follow-up Attacks . | . . . . . . . . . . . . . Damage Inflicted 7433 | 13 438 291 752 90 . 1088 1227 1781 1154 . . 599 Guns 1803 | 13 371 87 612 90 . 175 421 34 . . . . Cannons 378 | . . . . . . . . 25 . . . 353 Explosions 3504 | . 67 204 140 . . 913 197 1060 677 . . 246 Melee 1737 | . . . . . . . 609 651 477 . . . Ramming 11 | . . . . . . . . 11 . . . . Kinetic 1458 | . 164 42 228 69 . 122 421 59 . . . 353 Thermal 255 | . . . 120 . . 135 . . . . . . Explosive 3123 | . 67 204 140 . . 778 197 1060 677 . . . Electromagnetic 849 | 13 207 45 264 21 . 53 . . . . . 246 Impact . | . . . . . . . . . . . . . Slashing 1737 | . . . . . . . 609 651 477 . . . Piercing . | . . . . . . . . . . . . . Highest Corruption 3 | . . . . . . 3 . 1 1 1 1 2 Average Corruption 1 | . . . . . . 3 . 1 1 1 1 1 Corruption Purged . | . . . . . . . . . . . . . Corruption Blocked . | . . . . . . . . . . . . . Effects 15 | . . . . . . . . . 5 5 1 4 Message Errors 7 | . . . . . . . . . 2 2 1 2 Matter Fused 1 | . . . . . . . . . 1 . . . Heat Flow Errors 1 | . . . . . . . . . . . . 1 Energy Discharges 1 | . . . . . . . . . 1 . . . Parts Fused 1 | . . . . . . . . . . 1 . . Data Loss (minor) 2 | . . . . . . . . . 1 . . 1 Data Loss (major) 1 | . . . . . . . . . . 1 . . Alerts 1 | . . . . . . . . . . 1 . . Overload Shots . | . . . . . . . . . . . . . Overflow Damage 294 | . . 5 . . . 29 64 75 121 . . . Projectiles . | . . . . . . . . . . . . . Explosions 48 | . . 5 . . . 29 . 12 2 . . . Melee 246 | . . . . . . . 64 63 119 . . . Knockbacks 4 | . . . . . . . . 1 . . . 3 Impact . | . . . . . . . . . . . . . Kinetic 4 | . . . . . . . . 1 . . . 3 Secondary . | . . . . . . . . . . . . . Self-Inflicted Damage 283 | . . 37 . . . 129 . . 72 . . 45 Shots 12 | . . 2 . . . 5 . . 2 . . 3 Rammed 1 | . . . . . . . . 1 . . . . Targets Rammed 4 | . . . . . . . . 4 . . . . Kicked 3 | . . . . . . . . 3 . . . . Crushed . | . . . . . . . . . . . . . Highest Temperature 234 | . 45 9 234 20 . 145 112 63 6 . . 136 Average Temperature 48 | . 21 6 80 15 . 59 19 28 3 . . 60 Received Heat Transfer 1401 | . 93 . 180 . . 171 369 399 54 . . 135 Siege Activations . | . . . . . . . . . . . . . Robots Corrupted . | . . . . . . . . . . . . . Combat Hostiles . | . . . . . . . . . . . . . Parts Fried . | . . . . . . . . . . . . . Impact Corruptions . | . . . . . . . . . . . . . Robots Melted . | . . . . . . . . . . . . . Combat Hostiles . | . . . . . . . . . . . . . Parts Melted 1 | . . . 1 . . . . . . . . . Heat Transferred 520 | . . . 370 . . 150 . . . . . . Parts Sabotaged . | . . . . . . . . . . . . . Parts Stolen . | . . . . . . . . . . . . . Parts Stripped . | . . . . . . . . . . . . . Power Chain Reactions 1 | . . . . . . 1 . . . . . . Alert | -11 -10 -10 -9 -9 -9 -8 -8 -7 -7 -7 -7 -6 ------- Run | Yrd Mat Min Mat Min Exi Min Mat Fac Low Low Dat Pro Peak Influence 411 | 5 234 232 227 3 . 231 411 298 . . . . Initial 55 | . 3 32 . 3 . . 55 52 . . . . Average 98 | . 57 76 63 . . 164 185 85 . . . . Maximum Alert Level 2 | . 1 1 1 . . 1 2 1 . . . . Low Security (%) 85 | 100 93 82 96 100 . 71 67 95 . . . . Level 1 14 | . 6 17 3 . . 28 30 4 . . . . Level 2 . | . . . . . . . 2 . . . . . Level 3 . | . . . . . . . . . . . . . Level 4 . | . . . . . . . . . . . . . Level 5 . | . . . . . . . . . . . . . High Security . | . . . . . . . . . . . . . Max Security . | . . . . . . . . . . . . . Squads Dispatched 13 | . 1 . 2 . . . 5 4 . . . 1 Investigation 3 | . . . 1 . . . 1 1 . . . . Extermination 1 | . . . . . . . . 1 . . . . Reinforcement 5 | . 1 . 1 . . . 1 2 . . . . Assault 1 | . . . . . . . . . . . . 1 Garrison 3 | . . . . . . . 3 . . . . . Intercept . | . . . . . . . . . . . . . Searches Triggered . | . . . . . . . . . . . . . Construction Impeded 1 | . . . . . . . . 1 . . . . Haulers Reinforced . | . . . . . . . . . . . . . Active Scanning Responses . | . . . . . . . . . . . . . Cargo Convoy Interrupts . | . . . . . . . . . . . . . Stealth | -11 -10 -10 -9 -9 -9 -8 -8 -7 -7 -7 -7 -6 --------- Run | Yrd Mat Min Mat Min Exi Min Mat Fac Low Low Dat Pro Distress Signals 8 | . 1 . 4 . . . 3 . . . . . Communications Jammed . | . . . . . . . . . . . . . Distress Signals . | . . . . . . . . . . . . . Times Spotted 135 | . 15 7 30 2 . 13 25 17 7 . . 19 Peak Tracking Total 9 | . 4 3 8 2 . 3 7 7 4 . . 9 Tactical Retreats 11 | . 3 1 . . . 1 3 . . . . 3 Traps | -11 -10 -10 -9 -9 -9 -8 -8 -7 -7 -7 -7 -6 ------- Run | Yrd Mat Min Mat Min Exi Min Mat Fac Low Low Dat Pro Traps Triggered 6 | . 1 . 3 . . . 2 . . . . . Indirectly . | . . . . . . . . . . . . . Trap Hack Attempts . | . . . . . . . . . . . . . Triggered . | . . . . . . . . . . . . . Disarmed . | . . . . . . . . . . . . . Reprogrammed . | . . . . . . . . . . . . . Reused . | . . . . . . . . . . . . . Traps Extracted . | . . . . . . . . . . . . . Installed . | . . . . . . . . . . . . . Triggered 2 | . . . . . . . . . 1 1 . . Machines | -11 -10 -10 -9 -9 -9 -8 -8 -7 -7 -7 -7 -6 ---------- Run | Yrd Mat Min Mat Min Exi Min Mat Fac Low Low Dat Pro Machines Disabled 10 | . 1 . . . . 5 . 2 . . . 2 Max in Single Turn 4 | . 1 . . . . 4 . 2 . . . 2 Machines Repaired . | . . . . . . . . . . . . . Machines Dismantled . | . . . . . . . . . . . . . Machines Sabotaged . | . . . . . . . . . . . . . Overloaded Fab Kills . | . . . . . . . . . . . . . Hacking | -11 -10 -10 -9 -9 -9 -8 -8 -7 -7 -7 -7 -6 --------- Run | Yrd Mat Min Mat Min Exi Min Mat Fac Low Low Dat Pro Machines Accessed 33 | . 6 1 3 . 1 1 7 10 . . 4 . Terminals 23 | . 5 . 3 . . 1 5 9 . . . . Fabricators . | . . . . . . . . . . . . . Repair Stations 2 | . 1 . . . . . 1 . . . . . Recycling Units 1 | . . . . . . . . 1 . . . . Scanalyzers 1 | . . . . . . . 1 . . . . . Garrison Access . | . . . . . . . . . . . . . Total Hacks 114 | . 17 1 11 . 2 2 25 28 . . 28 . Successful 72 | . 9 1 4 . 2 1 17 10 . . 28 . Failed 42 | . 8 . 7 . . 1 8 18 . . . . Catastrophic 11 | . 1 . 2 . . . 3 5 . . . . Database Lockouts . | . . . . . . . . . . . . . Manual 47 | . 10 . 10 . . . 14 13 . . . . Terminals 71 | . 13 . 11 . . 2 20 25 . . . . Fabricators . | . . . . . . . . . . . . . Repair Stations 6 | . 4 . . . . . 2 . . . . . Recycling Units 3 | . . . . . . . . 3 . . . . Scanalyzers 3 | . . . . . . . 3 . . . . . Garrison Access . | . . . . . . . . . . . . . Terminal Hacks 52 | . 3 1 2 . 2 1 9 6 . . 28 . Record 13 | . . . . . 2 . . . . . 11 . Part Schematic 10 | . . . . . . . . 1 . . 9 . Robot Schematic 5 | . . . . . . . . . . . 5 . Prototype ID Bank 3 | . . . . . . . . . . . 3 . Open Door 1 | . . 1 . . . . . . . . . . Open DSF 1 | . . . . . . . . 1 . . . . Branch Access Points 2 | . . . . . . . 1 1 . . . . Emergency Access Points 1 | . . . . . . . 1 . . . . . Terminal Index 4 | . 1 . 1 . . . 1 1 . . . . Alert Level 3 | . . . 1 . . . 2 . . . . . Unreport Threat 2 | . . . . . . . 2 . . . . . Locate Traps 3 | . 2 . . . . . . 1 . . . . Patrol Status 1 | . . . . . . 1 . . . . . . Recall Investigation 1 | . . . . . . . 1 . . . . . Zone Layout 2 | . . . . . . . 1 1 . . . . Fabricator Hacks . | . . . . . . . . . . . . . Repair Station Hacks 6 | . 4 . . . . . 2 . . . . . Scan Component 3 | . 2 . . . . . 1 . . . . . Repair 3 | . 2 . . . . . 1 . . . . . Recycling Unit Hacks 2 | . . . . . . . . 2 . . . . Process 1 | . . . . . . . . 1 . . . . Retrieve Matter 1 | . . . . . . . . 1 . . . . Scanalyzer 3 | . . . . . . . 3 . . . . . Insert Component 2 | . . . . . . . 2 . . . . . Analyze 1 | . . . . . . . 1 . . . . . Garrison Access Hacks . | . . . . . . . . . . . . . Unauthorized Hacks 9 | . 2 . 2 . . . 3 2 . . . . Terminals 9 | . 2 . 2 . . . 3 2 . . . . Botnet 9 | . 2 . 2 . . . 3 2 . . . . Fabricators . | . . . . . . . . . . . . . Repair Stations . | . . . . . . . . . . . . . Recycling Units . | . . . . . . . . . . . . . Scanalyzers . | . . . . . . . . . . . . . Garrison Access . | . . . . . . . . . . . . . Data Cores Recovered 1 | . . . . . . . . 1 . . . . Used 1 | . . . . . . . . 1 . . . . Hacking Detections 26 | . 6 . 3 . . 1 7 9 . . . . Full Trace Events 3 | . . . 1 . . . 1 1 . . . . Feedback Events . | . . . . . . . . . . . . . Feedback Blocked . | . . . . . . . . . . . . . Robot Schematics Acquired 5 | . . . . . . . . . . . 5 . Robots Built . | . . . . . . . . . . . . . Authchips . | . . . . . . . . . . . . . Time . | . . . . . . . . . . . . . Total Robot Build Rating . | . . . . . . . . . . . . . Part Schematics Acquired 11 | . . . . . . . 1 1 . . 9 . Parts Built . | . . . . . . . . . . . . . Authchips . | . . . . . . . . . . . . . Time . | . . . . . . . . . . . . . Total Part Build Rating . | . . . . . . . . . . . . . Parts Repaired 3 | . 2 . . . . . 1 . . . . . Time 90 | . 52 . . . . . 38 . . . . . Parts Recycled . | . . . . . . . . . . . . . Recycled Matter . | . . . . . . . . . . . . . Retrieved Matter . | . . . . . . . . . . . . . Retrieved Components . | . . . . . . . . . . . . . Parts Scanalyzed 1 | . . . . . . . 1 . . . . . Part Schematics Acquired 1 | . . . . . . . 1 . . . . . Parts Damaged . | . . . . . . . . . . . . . Bothacking | -11 -10 -10 -9 -9 -9 -8 -8 -7 -7 -7 -7 -6 ------------ Run | Yrd Mat Min Mat Min Exi Min Mat Fac Low Low Dat Pro Used RIF Installer . | . . . . . . . . . . . . . Robots Hacked . | . . . . . . . . . . . . . Non-combat . | . . . . . . . . . . . . . Combat . | . . . . . . . . . . . . . Robot Hacks Applied . | . . . . . . . . . . . . . Relay Couplers Released . | . . . . . . . . . . . . . Fabnet Peak Effective % . | . . . . . . . . . . . . . Robots Rewired 3 | . . . . . . . . . 1 . . 2 Allies Hacked . | . . . . . . . . . . . . . Hacks Repelled . | . . . . . . . . . . . . . Allies | -11 -10 -10 -9 -9 -9 -8 -8 -7 -7 -7 -7 -6 -------- Run | Yrd Mat Min Mat Min Exi Min Mat Fac Low Low Dat Pro Total Allies 7 | . . 3 . . . . . . 1 . . 3 Largest Group 3 | . . 3 3 . . . . . 1 1 1 2 Highest-Rated Group 111 | . . 40 40 . . . . . 16 16 16 111 Highest-Rated Ally 96 | . . 16 16 . . . . . 16 16 16 96 Total Orders 5 | . . . 4 1 . . . . . . . . EXPLORE 4 | . . . 3 1 . . . . . . . . RETURN 1 | . . . 1 . . . . . . . . . Ally Attacks 46 | . . . 32 5 . . . . . . . 9 Total Damage 528 | . . . 250 . . . . . . . . 278 Kills 2 | . . . 2 . . . . . . . . . Allies Corrupted . | . . . . . . . . . . . . . Allies Melted . | . . . . . . . . . . . . . Intel | -11 -10 -10 -9 -9 -9 -8 -8 -7 -7 -7 -7 -6 ------- Run | Yrd Mat Min Mat Min Exi Min Mat Fac Low Low Dat Pro Robot Analysis Total . | . . . . . . . . . . . . . Derelict Logs Recovered 4 | . . 1 . . . . . . 2 1 . . Drone Launches 18 | . . . 18 . . . . . . . . . Drone Recoveries 2 | . . . 2 . . . . . . . . . Exploration | -11 -10 -10 -9 -9 -9 -8 -8 -7 -7 -7 -7 -6 ------------- Run | Yrd Mat Min Mat Min Exi Min Mat Fac Low Low Dat Pro Turns Passed 7887 | 76 825 1005 704 333 318 992 780 1037 704 606 120 387 Spaces Moved 4403 | 37 430 608 329 136 168 506 454 649 507 318 94 167 Core 26 | 1 . . 1 . . . . . 20 . . 4 Treads 1354 | 34 430 608 282 . . . . . . . . . Legs 2639 | . . . 46 136 168 506 454 649 105 318 94 163 Wheels 384 | 2 . . . . . . . . 382 . . . Hover . | . . . . . . . . . . . . . Flight . | . . . . . . . . . . . . . Fastest Speed 50 | 50 160 160 120 190 190 120 120 122 90 190 120 120 Average Speed 153 | 152 160 160 154 190 190 183 120 127 122 190 125 188 Slowest Speed 400 | 160 160 160 400 190 190 190 125 200 350 190 190 200 Overloaded Moves . | . . . . . . . . . . . . . Propulsion Burnouts . | . . . . . . . . . . . . . Robots Hopped . | . . . . . . . . . . . . . Cave-ins Triggered . | . . . . . . . . . . . . . Exploration Rate (%) 59 | 4 69 93 58 95 52 98 42 22 71 54 72 41 Regions Visited 12 Branch Regions 8 Pre-discovered Areas 2 | . . . . . 1 . . . . . 1 . Known Exits Taken 11 | . 1 1 1 1 1 1 1 1 1 1 1 . Unknown Exits Taken 1 | 1 . . . . . . . . . . . . Scrap Searched 16 | . . 2 . 1 . 1 . . 1 10 . 1 Spaces Dug 64 | . . 18 6 . . 11 2 15 12 . . . Terrain Destroyed 381 | . 4 34 13 . . 115 25 59 126 . . 5 Melee 12 | . . . . . . . 2 9 1 . . . Projectile 13 | . . . . . . . . 8 . . . 5 AOE 356 | . 4 34 13 . . 115 23 42 125 . . . Terrain Rammed . | . . . . . . . . . . . . . Walls Destroyed . | . . . . . . . . . . . . . Machines Disabled . | . . . . . . . . . . . . . Actions | -11 -10 -10 -9 -9 -9 -8 -8 -7 -7 -7 -7 -6 --------- Run | Yrd Mat Min Mat Min Exi Min Mat Fac Low Low Dat Pro Total 5172 | 52 527 626 456 203 167 545 620 790 555 321 97 213 Wait 332 | 1 63 3 39 58 . 13 88 63 4 . . . Move 4392 | 36 429 607 328 135 167 505 453 649 506 317 93 167 Hop . | . . . . . . . . . . . . . Pick Up 50 | 6 5 1 11 1 . 2 8 10 3 3 . . Fast Attach 34 | 7 2 . 8 . . . 4 . 10 . 2 1 Attach 23 | . 1 . 3 . . 4 6 3 5 . . 1 Detach 1 | 1 . . . . . . . . . . . . Swap 45 | . 3 3 13 3 . 4 11 5 1 . . 2 Drop 42 | . 3 3 15 1 . . 6 9 1 1 2 1 Fire 152 | 1 21 9 39 4 . 17 22 16 10 . . 13 Melee 68 | . . . . . . . 22 32 14 . . . Ram . | . . . . . . . . . . . . . Kick 3 | . . . . . . . . 3 . . . . Crush . | . . . . . . . . . . . . . Escape Stasis . | . . . . . . . . . . . . . Rewire 30 | . . . . 1 . . . . 1 . . 28 Trap . | . . . . . . . . . . . . . Miscellaneous . | . . . . . . . . . . . . . Route ------- -11/Scrapyard -10/Materials (discovered 4 exits: *Mat x3 / *Min) -10/Mines (discovered 2 exits: *Mat x2) -9/Materials (discovered 2 exits: *Mat / *Min) -9/Mines (discovered 3 exits: *Mat x2 / *Exi) -9/Exiles (discovered 2 exits: *Min x2) -8/Mines (discovered 2 exits: *Mat x2) -8/Materials -7/Factory (discovered 3 exits: *Fac / *Low x2) -7/Lower Caves -7/Lower Caves (discovered 2 exits: *Fac / *Dat) -7/Data Miner -6/Proximity Caves History --------- Turn | Location | Event 10 | -11/Scrapyard | Discovered new exit (range 15) 77 | -11/Scrapyard | Entered Materials 197 | -10/Materials | Discovered new exit (range 4) 307 | -10/Materials | Identified exit to Materials 327 | -10/Materials | Build established: Mutant 435 | -10/Materials | Discovered exit to Materials (range 12) 694 | -10/Materials | Repaired Lgt. Treads 721 | -10/Materials | Repaired EM Pulse Gun 759 | -10/Materials | Discovered exit to Materials (range 15) 863 | -10/Materials | Discovered new exit (range 16) 900 | -10/Materials | Identified exit to Mines 902 | -10/Materials | Entered Mines 1285 | -10/Mines | Learned Materials emergency access door positions 1334 | -10/Mines | Found a hidden stash of uninstalled traps 1616 | -10/Mines | Discovered exit to Materials (range 8) 1645 | -10/Mines | Discovered exit to Materials (range 7) 1715 | -10/Mines | Assisted by bots powering up and referring to "LRC-V3" 1804 | -10/Mines | Found the Drone Emporium 1810 | -10/Mines | Found Prototype Device 1907 | -10/Mines | Entered Materials 1907 | -9/Materials | Accompanied by 3 allies 1907 | -9/Materials | Evolved 2 slots: Utility x2 1907 | -9/Materials | Identified Bomb Drone Bay 2129 | -9/Materials | Discovered new exit (range 23) 2215 | -9/Materials | Identified exit to Materials 2299 | -9/Materials | Build established: Scavenger-Mutant 2468 | -9/Materials | Lost 5 allies 2576 | -9/Materials | Discovered new exit (range 19) 2609 | -9/Materials | Identified exit to Mines 2611 | -9/Materials | Entered Mines 2611 | -9/Mines | Accompanied by 5 allies 2649 | -9/Mines | Build established: Mutant 2662 | -9/Mines | Discovered exit to Materials (range 36) 2684 | -9/Mines | Discovered exit to Materials (range 52) 2718 | -9/Mines | Assembled infested the area 2756 | -9/Mines | Met 8R-AWN 2881 | -9/Mines | YI-UF0 nonchalantly dropped a Grenade Launcher on the ground 2897 | -9/Mines | Murdered YI-UF0 2897 | -9/Mines | Destroyed YI-UF0 2906 | -9/Mines | Found Prototype Launcher 2907 | -9/Mines | Identified YI-UF0's Doublenader 2937 | -9/Mines | Discovered new exit (range 5) 2942 | -9/Mines | Identified exit to Exiles 2944 | -9/Mines | Entered Exiles 2973 | -9/Exiles | Discovered new exit (range 15) 2998 | -9/Exiles | Identified exit to Mines 3038 | -9/Exiles | Welcomed by 8R-AWN 3064 | -9/Exiles | Met EX-HEX 3119 | -9/Exiles | Met EX-BIN 3144 | -9/Exiles | Met EX-DEC 3155 | -9/Exiles | Learned location of Zion (-6) 3237 | -9/Exiles | Discovered exit to Mines (range 14) 3262 | -9/Exiles | Entered Mines 3307 | -8/Mines | Lost 3 parts (1n1u1w) 3652 | -8/Mines | Build established: Scavenger-Mutant 3727 | -8/Mines | Discovered exit to Materials (range 8) 4092 | -8/Mines | Discovered exit to Materials (range 13) 4254 | -8/Mines | Entered Materials 4254 | -8/Materials | Evolved 2 slots: Propulsion x2 4831 | -8/Materials | Garrison activated, responded to threat 4894 | -8/Materials | Lost 3 parts (1p1n1u) 4965 | -8/Materials | Discovered new exit (range 17) 5025 | -8/Materials | Repaired Insulated Plating 5033 | -8/Materials | Identified exit to Factory 5034 | -8/Materials | Entered Factory 5034 | -7/Factory | Evolved 2 slots: Utility x1, Weapon x1 5199 | -7/Factory | Discovered new exit (range 4) 5203 | -7/Factory | Identified exit to Factory 5774 | -7/Factory | Identified exit to Lower Caves 5817 | -7/Factory | Destroyed 7 combat bots 6071 | -7/Factory | Entered Lower Caves 6102 | -7/Lower Caves | Lost 8 parts (1p3n2u2w) 6201 | -7/Lower Caves | Learned Factory emergency access door positions 6610 | -7/Lower Caves | Lost 4 parts (1p2n1w) 6667 | -7/Lower Caves | Learned Factory terminal intel 6703 | -7/Lower Caves | Discovered new exit (range 14) 6719 | -7/Lower Caves | Identified exit to Lower Caves 6775 | -7/Lower Caves | Entered another Lower Caves area 6775 | -7/Lower Caves | Accompanied by 1 ally 6838 | -7/Lower Caves | Learned 12 Factory zone layouts 6899 | -7/Lower Caves | Discovered exit to Factory (range 8) 7204 | -7/Lower Caves | Encountered a Warlord checkpoint 7205 | -7/Lower Caves | Discovered new exit (range 9) 7246 | -7/Lower Caves | Identified exit to Data Miner 7381 | -7/Lower Caves | Entered Data Miner 7381 | -7/Data Miner | Accompanied by 1 ally 7382 | -7/Data Miner | Discovered new exit (range 6) 7403 | -7/Data Miner | Met Data Miner 7432 | -7/Data Miner | Learned location of Section 7 (-2) 7432 | -7/Data Miner | Acquired the access code to Warlord's prototype stash 7453 | -7/Data Miner | Received God Mode back door access code from Data Miner 7499 | -7/Data Miner | Identified exit to Proximity Caves 7501 | -7/Data Miner | Entered Proximity Caves 7501 | -6/Proximity Caves | Accompanied by 1 ally 7797 | -6/Proximity Caves | Attracted the attention of an 0b10 outpost 7872 | -6/Proximity Caves | Core integrity fell below 50% 7878 | -6/Proximity Caves | Core integrity fell below 20% 7888 | -6/Proximity Caves | Destroyed by Y-64 Sentinel with Wave Gun Last Messages --------------- 07869_ Attempting to rewire Y-54 Guardian. 07871_ Arm. Wheel destroyed. 07871_ Imp. Heat Sink severed. 07871_ Attempting to rewire Y-54 Guardian. 07871_ Gauss Cannon destroyed. 07871_ Penetrated by Slug. 07872_ Attempting to rewire Y-54 Guardian. 07873_ Adv. Targeting Computer severed. 07874_ Penetrated by Slug. 07874_ Attempting to rewire Y-54 Guardian. 07875_ Signal Interpreter severed. 07875_ Attempting to rewire Y-54 Guardian. 07877_ Visual Processing Unit severed. 07877_ Attempting to rewire Y-54 Guardian. 07879_ Y-54 Guardian rewired. 07880_ Penetrated by Slug. 07882_ Attempting to rewire B-48 Gladiator. 07882_ B-48 Gladiator rewired. 07884_ Guardian 5a destroyed. 07886_ System corrupted: Component data lost. Map ----- +----------------------------------------------------+ | ?????????????????????????????????????????????????? | | ?????????????????????????????????????????????????? | | ?????????????????????????????????????????????????? | | ?????????????????????????????????????????????????? | | ?????????????????????????????????????????????????? | | ?????????????????????????????????????????????????? | | ?????????????????????????????????????????????????? | | ?????????????????????????????????????????????????? | | ?????????????????????????????????????????????????? | | ?????????????????????????????????????????????????? | | ?????????????????????????????????????????????????? | | ?????????????????????????????????????????????????? | | ?????????????????????????????????????????????????? | | ?????????????????????????????????????????????????? | | #####????????????????????????????????????????????? | | # #????????????????????????????????????????????? | | #?????????????????####???????????????????????? | | #?????????????##### ##??????????????????????? | | # #?????????????#;## ####???????????????????? | | # #??####???????#[% = #???????????????????? | | #### ##??????#=!%* #???????????????????? | | ## #####??#%#! # #???????????????????? | | #??#=###% ## # # ??????????? | | g ####*% % % ????????????? | | ##### ### %]%*%Y% # #???????????????? | | ##### #?#####%!#=llb@"#?????????????????????? | | ### #?????# !#=lb #?????????????????????? | | ??# #?????# ########?????????????????????? | | ?? ## #?????# ????????????????????????????? | | ?# ### #?????# ## ???????????????????????????? | | ?# ### #?????# #? ??????????????????????????? | | ## ## #?????# #?? #?????????????????????????? | | #?????# #???#?????????????????????????? | | ## ##????# ?????????????????????????????? | | #?? ###??# ?????????????????????????????? | | #?? ##?###?????????????????????????????? | | ### ##????????????????????????????????? | | ##???????????????????????????????? | | ??????????????????????????????? | | ??????????????????????????????? | | ??????????????????????????????? | | ### ??????????????????????????????? | | #???? ???????????????????????????????? | | ### #???????????????????????????????????????? | | / ##?? #???????????????????????????????????????? | | # ##???? #???????????????????????????????????????? | | [!#??????#???????????????????????????????????????? | | #??????????????????????????????????????????????? | | ###??????????????????????????????????????????????? | | ??????? ##???????????????????????????????????????? | +----------------------------------------------------+ Best States ------------- Heat Dissipation 48 Energy Generation 18 Energy Capacity 275 Matter Stores 300 Matter Capacity 300 Sight Range 18 Terrain Scan Range 16 Terrain Scan Density 10 Armor Coverage 225 Resistance: KI 30 Resistance: EM 15 Evasion (%) 55 Targeting Accuracy 8 Recoil Reduction 2 Item Schematics ----------------- Lgt. Armor Plating | -8/Materials | Scanalyzed Imp. System Shield | -7/Factory | Hacked Combat Drone Bay | -7/Data Miner | Free Lgt. Regenerative Plating | -7/Data Miner | Free Biomechanical Wings | -7/Data Miner | Free Exp. Targeting Computer | -7/Data Miner | Free Antimatter Cannon | -7/Data Miner | Free Antigrav System | -7/Data Miner | Free Imp. Launcher Guidance Computer | -7/Data Miner | Free Imp. Remote Datajack | -7/Data Miner | Free Power Sword | -7/Data Miner | Free Robot Schematics ------------------ Y-54 Guardian | -7/Data Miner | Free G-47 Trooper | -7/Data Miner | Free O-24 Administrator | -7/Data Miner | Free Y-64 Sentinel | -7/Data Miner | Free S-27 Virus | -7/Data Miner | Free Fabricated ------------ Nothing Alien Tech Used ----------------- None Achievements -------------- Backstab Knowing Is Half The Battle The Oracle Challenges ------------ None Game ------ Seed DispersionWeaponsNeutralizer Manual? 0 Play Time 01:23:05 Cumulative 32.9 hours Start 2024.05.22 @ 20:36:56 End 2024.05.22 @ 22:00:08 Sessions 1 Manual Loads 0 Difficulty Rogue Special Mode None Game No. 22 Rogue 22 Adventurer 0 Explorer 0 Win Type - Total 1 Types 1/0/0/0/0/0/0/0/0 Lore% 33 Gallery% 36 Achievement% 36 Wizard Run 0 Options --------- Layout 1 ASCII 0 Keyboard 0 Movement Mouse Keybinds 0 Fullscreen 1 Font 24/Smallcaps Map View 50x35 Zoom Use 0% Tactical HUD 1 Map Filters NONE Filters NONE Steam 0 RUN: 9eece5db-19c5-47eb-9eec-69b23dee50ad